Cogmind - Beta 15 @@@ ROGUE MODE // 2025.09.21 @ 12:19:50 Player: Ribbon Result: Destroyed by D-53 Grenadier with Mini Grenade Launcher Performance ------------- Evolutions (0) 0 Regions Visited (2) 400 Robots Destroyed (35) 175 Value Destroyed (633) 633 Prototype IDs (0) 0 Alien Tech Used (0) 0 Bonus (0) 0 TOTAL SCORE: 1208 Bonus ------- None Cogmind --------- Core Integrity 0/250 Matter 267/300 Energy 80/100 System Corruption 0% Temperature Cool (0) Movement Treading (160) Location -10/Mines Parts ------- > --- POWER (1) -------- (None) > --- PROPULSION (2) --- Light Treads > --- UTILITY (2) ------ Structural Scanner Hacking Suite > --- WEAPON (2) ------- Beam Cannon Rocket Launcher > --- INVENTORY (5) ---- Improved Heat Sink Medium Matter Pod (100) Seismic Detector Peak State ------------ > --- POWER ------------ Ion Engine > --- PROPULSION ------- Wheel Wheel > --- UTILITY ---------- Improved Heat Sink Seismic Detector > --- WEAPON ----------- Particle Gun Rocket Launcher > --- INVENTORY -------- Light Ion Engine High-capacity Battery Structural Scanner EM Pulse Gun [Rating: 11] Favorites ----------- Power Ion Engine Engine Ion Engine Propulsion Wheel Treads Light Treads Wheel Wheel Hover Unit Hover Unit Flight Unit Flight Unit Utility Seismic Detector Device Seismic Detector Storage Medium Matter Pod Hackware Hacking Suite Weapon Rocket Launcher Energy Gun Particle Gun Energy Cannon Beam Cannon Ballistic Gun Assault Rifle Launcher Rocket Launcher Special Weapon Mining Laser Build | -11 -10 -10 ------- Run | Yrd Mat Min Slots Evolved . | . . . Power . | . . . Propulsion . | . . . Utility . | . . . Weapon . | . . . Parts Attached 32 | 8 22 2 Power 3 | 1 2 . Engine 3 | 1 2 . Core . | . . . Reactor . | . . . Propulsion 10 | 3 7 . Treads 1 | . 1 . Leg . | . . . Wheel 7 | 3 4 . Hover 1 | . 1 . Flight 1 | . 1 . Utility 8 | 2 6 . Device 4 | 2 2 . Storage 3 | . 3 . Processor . | . . . Hackware 1 | . 1 . Protection . | . . . Artifact . | . . . Weapon 11 | 2 7 2 Energy Gun 2 | . 2 . Energy Cannon 1 | . . 1 Ballistic Gun 4 | 2 2 . Ballistic Cannon . | . . . Launcher 2 | . 1 1 Special Weapon 2 | . 2 . Impact Weapon . | . . . Slashing Weapon . | . . . Piercing Weapon . | . . . Special Melee Weapon . | . . . Unidentified Prototypes . | . . . Parts Lost 6 | . 3 3 Power 1 | . . 1 Propulsion 2 | . 2 . Utility . | . . . Weapon 3 | . 1 2 Highest Loss Streak 2 | . 2 2 To Critical Strikes . | . . . Average Backups 4 | 1 4 4 Power . | . . . Propulsion . | . . . Utility 2 | . 2 3 Weapon 1 | . 1 1 Tool/Special . | . . . Unused Backups 2 | . 2 . Power 1 | . 1 . Propulsion 1 | . 1 . Utility . | . . . Weapon . | . . . Tool/Special . | . . . Average Slot Usage (%) 89 | . 90 85 Engine 14 | . 14 14 Treads 8 | . 7 14 Wheel 9 | . 11 . Device 25 | . 27 14 Hackware 2 | . . 14 Energy Gun 4 | . 5 . Energy Cannon 1 | . . 13 Ballistic Gun 3 | . 4 . Launcher 10 | . 10 14 Special Weapon 6 | . 6 . Peak Build Rating 11 | 7 11 9 Average Rating 7 | 4 7 8 On Entrance 5 | . 7 9 Naked Turns . | . . . Heaviest Build 15 | 8 15 13 Greatest Support 20 | 20 20 20 Greatest Overweight (x) 3 | . 3 . Average Overweight (x) . | . . . Largest Inventory Capacity 5 | 5 5 5 Average Capacity 5 | 5 5 5 Most Carried 5 | 4 5 5 Average Carried 4 | 1 4 4 Final Capacity 5 | 5 5 5 Final Carried 5 | 3 5 3 Class Distribution -------------------- 83% | Mutant 16% | Scavenger-Mutant Dominant Class ---------------- Mutant | -10/Materials Mutant | -10/Mines Resources | -11 -10 -10 ----------- Run | Yrd Mat Min Matter Collected 1122 | 304 787 31 Remotely . | . . . Salvage Created 781 | 69 667 45 Parts 54 | 6 47 1 Haulers Intercepted 2 | . 2 . Recyclers Shooed 2 | . 2 . Parts Field Recycled . | . . . Retrieved Matter . | . . . Parts Self-Destructed . | . . . Prevented . | . . . Kills | -11 -10 -10 ------- Run | Yrd Mat Min Combat Hostiles Destroyed 20 | 1 15 4 Guns 9 | 1 8 . Cannons 6 | . 3 3 AOE 5 | . 4 1 Classes Destroyed 8 | 2 6 . Worker 4 | . 4 . Tunneler 1 | 1 . . Hauler 2 | . 2 . Recycler 3 | . 3 . Operator 2 | . 2 . Watcher 3 | . 3 . Swarmer 9 | . 6 3 Grunt 11 | 1 9 1 Best Kill Streak 3 | 2 3 3 Combat Bots Only 3 | 1 2 3 Max Kills in Single Turn 2 | 1 2 1 Gunslinging . | . . . Exploded 1 | . 1 1 Melee . | . . . Uniques/NPCs Destroyed . | . . . Combat | -11 -10 -10 -------- Run | Yrd Mat Min Hostile Shots Fired 97 | 6 74 17 Missed 28 | 2 23 3 Hits 69 | 4 51 14 Projectile 69 | 4 51 14 AOE 5 | . . 5 Damage Taken 971 | 44 589 338 Core 265 | 10 135 120 Absorbed by Shields . | . . . Regen/Repaired (Parts) 87 | . 87 . Core Remaining (%) 96 | 96 . . Volleys Fired 115 | 6 99 10 Largest 2 | 2 2 1 Hottest 120 | 40 120 100 Shots Fired 157 | 12 135 10 Gun 122 | 12 110 . Cannon 4 | . . 4 Launcher 16 | . 12 4 Special 15 | . 13 2 Kinetic 68 | 12 56 . Thermal 64 | . 58 6 Explosive 16 | . 12 4 Electromagnetic 9 | . 9 . Robot Hit Streak 15 | 3 15 4 Robot Miss Streak 5 | 1 5 2 Penetration Max . | . . . Secondary Targets 2 | . 2 . Max Gunslinging Chain 1 | . 1 . Shots Hit Robots 84 | 8 69 7 Core Hits 51 | 3 40 8 Critical Kills . | . . . Critical Parts Destroyed . | . . . Critical Strikes 1 | . 1 . Burn 1 | . 1 . Melee Attacks . | . . . Impact . | . . . Slashing . | . . . Piercing . | . . . Sneak Attacks . | . . . Combat Hostiles . | . . . Follow-up Attacks . | . . . Damage Inflicted 1790 | 88 1503 199 Guns 940 | 88 852 . Cannons 69 | . . 69 Explosions 637 | . 531 106 Melee . | . . . Ramming . | . . . Kinetic 489 | 88 401 . Thermal 545 | . 452 93 Explosive 637 | . 531 106 Electromagnetic 119 | . 119 . Impact . | . . . Slashing . | . . . Piercing . | . . . Highest Corruption . | . . . Average Corruption . | . . . Corruption Purged . | . . . Corruption Blocked . | . . . Overload Shots . | . . . Overflow Damage . | . . . Projectiles . | . . . Explosions . | . . . Melee . | . . . Knockbacks . | . . . Impact . | . . . Kinetic . | . . . Secondary . | . . . Self-Inflicted Damage 106 | . 52 54 Shots 5 | . 3 2 Rammed . | . . . Targets Rammed . | . . . Kicked . | . . . Crushed . | . . . Highest Temperature 172 | 6 172 80 Average Temperature 42 | 6 46 26 Received Heat Transfer 207 | 24 165 18 Siege Activations . | . . . Martial Activations . | . . . Shielding Activations . | . . . Robots Disrupted . | . . . Combat Hostiles . | . . . Robots Corrupted 1 | . 1 . Combat Hostiles . | . . . Parts Fried 3 | . 3 . Impact Corruptions . | . . . Robots Melted . | . . . Combat Hostiles . | . . . Parts Melted 2 | . 1 1 Heat Transferred 1299 | . 1101 198 Parts Sabotaged . | . . . Parts Stolen . | . . . Parts Stripped . | . . . Power Chain Reactions . | . . . Alert | -11 -10 -10 ------- Run | Yrd Mat Min Maximum Alert Level . | . . . Low Security (%) 100 | 100 100 100 Level 1 . | . . . Level 2 . | . . . Level 3 . | . . . Level 4 . | . . . Level 5 . | . . . High Security . | . . . Max Security . | . . . Peak Influence 121 | 20 121 88 Initial 28 | . 3 28 Average 37 | 5 38 38 Influence Increases 786 | 25 636 125 Destroy 0b10 Robot/C 400 | 20 300 80 Destroy 0b10 Robot/NC 75 | 5 70 . Destroy Leader 100 | . 80 20 Successful Hack 11 | . 11 . Disable Machine 45 | . 45 . Destroy Structure 110 | . 85 25 Lose Combat Pursuer 45 | . 45 . Influence Decreases 786 | 20 567 199 Entered New Map 48 | . 2 46 Time Decay 695 | 20 532 143 Lost Part 40 | . 30 10 Purge Threat 3 | . 3 . Squads Dispatched 4 | . 4 . Investigation 3 | . 3 . Extermination . | . . . Reinforcement 1 | . 1 . Assault . | . . . Garrison . | . . . Intercept . | . . . Searches Triggered . | . . . Construction Impeded . | . . . Haulers Reinforced . | . . . Active Scanning Responses . | . . . Cargo Convoy Interrupts . | . . . Stealth | -11 -10 -10 --------- Run | Yrd Mat Min Distress Signals 1 | . 1 . Communications Jammed . | . . . Distress Signals . | . . . Times Spotted 34 | 1 28 5 Peak Tracking Total 4 | 1 4 2 Tactical Retreats 2 | . 2 . Traps | -11 -10 -10 ------- Run | Yrd Mat Min Traps Triggered 2 | . 2 . Indirectly . | . . . Trap Hack Attempts . | . . . Triggered . | . . . Disarmed . | . . . Reprogrammed 4 | . 4 . Reused . | . . . Traps Extracted . | . . . Installed . | . . . Triggered . | . . . Machines | -11 -10 -10 ---------- Run | Yrd Mat Min Machines Disabled 3 | . 3 . Max in Single Turn 1 | . 1 . Machines Repaired . | . . . Machines Dismantled . | . . . Machines Sabotaged . | . . . Overloaded Fab Kills . | . . . Hacking | -11 -10 -10 --------- Run | Yrd Mat Min Machines Accessed 8 | . 8 . Terminals 7 | . 7 . Fabricators . | . . . Repair Stations 1 | . 1 . Recycling Units . | . . . Scanalyzers . | . . . Garrison Access . | . . . Total Hacks 25 | . 25 . Successful 12 | . 12 . Failed 13 | . 13 . Catastrophic 4 | . 4 . Database Lockouts . | . . . Manual 13 | . 13 . Terminals 18 | . 18 . Fabricators . | . . . Repair Stations 7 | . 7 . Recycling Units . | . . . Scanalyzers . | . . . Garrison Access . | . . . Terminal Hacks 8 | . 8 . Alert Level 4 | . 4 . Unreport Threat 2 | . 2 . Locate Traps 1 | . 1 . Reprogram Traps 1 | . 1 . Fabricator Hacks . | . . . Repair Station Hacks 4 | . 4 . Scan Component 2 | . 2 . Repair 2 | . 2 . Recycling Unit Hacks . | . . . Scanalyzer . | . . . Garrison Access Hacks . | . . . Unauthorized Hacks . | . . . Terminals . | . . . Fabricators . | . . . Repair Stations . | . . . Recycling Units . | . . . Scanalyzers . | . . . Garrison Access . | . . . Data Cores Recovered 1 | . 1 . Used . | . . . Hacking Detections 7 | . 7 . Full Trace Events 2 | . 2 . Feedback Events . | . . . Feedback Blocked . | . . . Robot Schematics Acquired . | . . . Robots Built . | . . . Authchips . | . . . Time . | . . . Total Robot Build Rating . | . . . Part Schematics Acquired . | . . . Parts Built . | . . . Authchips . | . . . Time . | . . . Total Part Build Rating . | . . . Parts Repaired 2 | . 2 . Time 58 | . 58 . Parts Recycled . | . . . Recycled Matter . | . . . Retrieved Matter . | . . . Retrieved Components . | . . . Parts Scanalyzed . | . . . Part Schematics Acquired . | . . . Parts Damaged . | . . . Bothacking | -11 -10 -10 ------------ Run | Yrd Mat Min Used RIF Installer . | . . . Robots Hacked . | . . . Non-combat . | . . . Combat . | . . . Robot Hacks Applied . | . . . Relay Couplers Released . | . . . Fabnet Peak Effective % . | . . . Robots Rewired . | . . . Allies Hacked . | . . . Hacks Repelled . | . . . Allies | -11 -10 -10 -------- Run | Yrd Mat Min Total Allies . | . . . Largest Group . | . . . Highest-Rated Group . | . . . Highest-Rated Ally . | . . . Total Orders . | . . . Ally Attacks . | . . . Total Damage . | . . . Kills . | . . . Allies Corrupted . | . . . Allies Melted . | . . . Intel | -11 -10 -10 ------- Run | Yrd Mat Min Active Infowar (turns) 2619 | 11 2231 377 Structural 1895 | . 1572 323 Seismic 2258 | 11 2193 54 Robot Analysis Total . | . . . Derelict Logs Recovered . | . . . Drone Launches . | . . . Drone Recoveries . | . . . Exploration | -11 -10 -10 ------------- Run | Yrd Mat Min Turns Passed 2708 | 100 2231 377 Spaces Moved 1488 | 89 1218 181 Core 23 | 21 2 . Treads 716 | . 535 181 Legs . | . . . Wheels 720 | 68 652 . Hover 29 | . 29 . Flight . | . . . Fastest Speed 50 | 50 80 160 Average Speed 119 | 72 116 160 Slowest Speed 200 | 80 200 160 Overloaded Moves . | . . . Propulsion Burnouts . | . . . Robots Hopped . | . . . Potential Cave-ins . | . . . Cave-ins Triggered . | . . . Exploration Rate (%) 48 | 8 99 39 Regions Visited 2 Branch Regions 1 Pre-discovered Areas . | . . . Known Exits Taken . | . . . Unknown Exits Taken 2 | 1 1 . Scrap Searched . | . . . Spaces Dug 3 | . 3 . Terrain Destroyed 129 | . 92 37 Melee . | . . . Projectile 4 | . 4 . AOE 125 | . 88 37 Terrain Rammed . | . . . Walls Destroyed . | . . . Machines Disabled . | . . . Actions | -11 -10 -10 --------- Run | Yrd Mat Min Total 2246 | 112 1880 254 Wait 515 | . 455 60 Move 1486 | 88 1217 181 Hop . | . . . Pick Up 43 | 10 33 . Fast Attach . | . . . Attach 29 | 7 20 2 Detach 5 | . 5 . Swap 26 | 1 24 1 Drop 27 | . 27 . Fire 115 | 6 99 10 Melee . | . . . Ram . | . . . Kick . | . . . Crush . | . . . Escape Stasis . | . . . Rewire . | . . . Trap . | . . . Miscellaneous . | . . . Route ------- -11/Scrapyard -10/Materials (discovered 5 exits: [*Mat x3] / [*Min] / [*Sub]) -10/Mines (discovered 3 exits: [*Mat x2] / [*Sub]) History --------- Turn | Location | Event 2 | -11/Scrapyard | Met Revision 17 51 | -11/Scrapyard | Discovered new exit (range 8) 101 | -11/Scrapyard | Entered Materials 316 | -10/Materials | Build established: Mutant 466 | -10/Materials | Discovered new exit (range 12) 504 | -10/Materials | Repaired Particle Gun 718 | -10/Materials | Discovered new exit (range 4) 972 | -10/Materials | Discovered new exit (range 4) 1658 | -10/Materials | Core integrity fell below 50% 1862 | -10/Materials | Discovered new exit (range 9) 1872 | -10/Materials | Discovered new exit (range 8) 2112 | -10/Materials | Repaired Lgt. Treads 2332 | -10/Materials | Entered Mines 2340 | -10/Mines | Met a Derelict bent on vengeance 2382 | -10/Mines | Discovered new exit (range 6) 2537 | -10/Mines | Discovered new exit (range 9) 2637 | -10/Mines | Discovered new exit (range 9) 2701 | -10/Mines | Assembled infested the area 2706 | -10/Mines | Assisted by a Guerilla fighting off Assembled 2706 | -10/Mines | Core integrity fell below 20% 2709 | -10/Mines | Destroyed by D-53 Grenadier with Mini Grenade Launcher Last Messages --------------- K-01 Serf cleans the Seismic Survey Station. EXIT=FOUND K-01 Serf collects debris. ALERT: Infestation in the mines, dispatching Demolisher response squad. 7C-4DK(h): "I'll hold them off! Go on ahead or try to find another way!" HV Slug penetrates Wall. C-30 ARC bursts open, deploying its payload. D-53 Grenadier unfolds itself. K-01 Serf collects debris. A derelict emerges from the shadows: "You need to get out of here! I've been tracking a group of Assembled to figure out where they're coming from, and they're closing on this area, come on!" Ion Engine destroyed. Rocket Launcher destroyed. HV Slug penetrates Wall. Map ----- +----------------------------------------------------+ | ?????????????????????????????????????????????????? | | ?????????????????????????????????????????????????? | | ?????????????????????????????????????????????????? | | ?????????????????????????????????????????????????? | | ?????????????????????????????????????????????????? | | ?????????????????????????????????????????????????? | | ?????????????????????????????????????????????????? | | ?????????????????????????????????????????????????? | | ?????????????????????????????????????????????????? | | ?????????????????????????????????????????????????? | | ???????????????????????? ???????????????????????? | | ??????????????????????## ???????????????????????? | | ??????????????????????## ???????????????????????? | | ??????????????????????## ?? ##??## ??????????? ? | | ??????????????####### ?? ##??## ?????????? | | ??????????????########## ?? ##??## #???????? | | ??????????????## ## ## ##??## ##??????? | | ??????????????## !!! # ## ##??## ##??????? | | ??????????????## !!!! # ## ##??## ##?????? | | ??????????????????! ! # ## ##??## ######?? # | | ???????????????????!! # ## ###?## ####### ## | | ???????????????????? ## ###### ### ### ### | | ????????????????????? # ## ##### ##? | | ????????????????????### #### ## ##? | | ???????????????????#### #### ## ## ???? | | ???????????????????### @ ### # ####### | | ???????????????????## #;## ###### | | ???????????????????## h d ### # | | ??????????????????"## d% k ##### | | ????????????????? ##k ## | | ?????????????????## ## #### | | ????????????????? ######### ##### ###### | | ????????????? ######## ##### ## # | | ????????????? #### ##??### < #### #### # | | ????????????? ## ?????### ## #### #### # | | ??????????????? ?????## #### #### ###### | | ??????????????? ??????## ##### #### # | | ??????????????? ???????## ##### ######?? # | | ?????????????????????????### ###?# ####### # | | ?????????????????????????########?# ###?## # | | ??????????????????????????######??## ##?## | | ??????????????????????????????????## ##?### | | ??????????????????????????????????## ###?#### | | ??????????????????????????????????# ####??### | | ???????????????????????????????????? ####????## | | ???????????????????????????????????? ####?????## | | ????????????????????????????????????#####????????# | | ????????????????????????????????????###??????????? | | | | | +----------------------------------------------------+ Best States ------------- Heat Dissipation 39 Energy Generation 10 Energy Capacity 500 Matter Stores 400 Matter Capacity 400 Sight Range 16 Terrain Scan Density 10 Evasion (%) 50 Recoil Reduction 1 Offensive Hacking 10 Item Schematics ----------------- None Robot Schematics ------------------ None Fabricated ------------ Nothing Repaired ---------- Particle Gun | 69% | -10/Materials Lgt. Treads | 54% | -10/Materials Alien Tech Used ----------------- None Achievements -------------- Crack Shot Part-time Mechanic Power Corrupts Challenges ------------ None Game ------ Seed PhysicsSegregatorMembrane Manual? 0 Play Time 01:03:13 Cumulative 4.2 hours Start 2025.09.21 @ 11:12:47 End 2025.09.21 @ 12:19:50 Sessions 1 Manual Loads 0 Difficulty Rogue Special Mode None Game No. 3 Rogue 3 Adventurer 0 Explorer 0 Win Type - Total 0 Types 0/0/0/0/0/0/0/0/0/0 Lore% 2 Gallery% 5 Achievement% 6 Wizard Run 0 Options --------- Layout 1 ASCII 0 Keyboard 0 Movement Mouse Keybinds 0 Fullscreen 1 Font 24/Terminus Map View 25x17 Zoom Use 66% Tactical HUD 0 Map Filters NONE Filters NONE Steam 1 RUN: 418a7008-8cc7-4690-b58f-b2252cadbe30